bitfinex/quotes_BTCUSD_20251113
["timestamp","ask_amount","ask_price","bid_price","bid_amount"]
[1763058485618,2.40799595,99001.0,99000.0,28.12336551]
[1763058485852,2.40799595,99001.0,99000.0,28.12436551]
[1763058486073,2.40799595,99001.0,99000.0,27.05589551]
[1763058486538,2.40799595,99001.0,99000.0,27.05489551]
[1763058486755,2.35774633,99001.0,99000.0,27.05489551]
[1763058487009,0.35974633,99001.0,99000.0,27.05489551]
[1763058487219,0.35474633,99001.0,99000.0,27.05489551]
[1763058487452,2.35474633,99001.0,99000.0,27.05489551]
[1763058487701,2.35974633,99001.0,99000.0,27.05489551]
[1763058487934,2.35974633,99001.0,99000.0,27.05473551]
[1763058487935,2.50164843,99001.0,99000.0,27.05473551]
[1763058488935,2.49864843,99001.0,99000.0,27.05473551]
[1763058489187,2.49664843,99001.0,99000.0,27.05473551]
[1763058489421,2.50064843,99001.0,99000.0,27.05473551]
[1763058489644,2.69866659,99001.0,99000.0,27.05473551]
[1763058489865,2.69866659,99001.0,99000.0,26.97224673]
[1763058489866,2.70066659,99001.0,99000.0,26.97224673]
[1763058490088,2.70366659,99001.0,99000.0,26.97224673]
[1763058490312,2.52814843,99001.0,99000.0,26.9501081]
[1763058490550,2.52714843,99001.0,99000.0,26.9501081]
[1763058490843,2.52514843,99001.0,99000.0,26.9501081]
[1763058491094,2.56212031,99001.0,99000.0,26.66012699]
[1763058491325,2.56212031,99001.0,99000.0,26.49551569]
[1763058491557,2.5757758,99001.0,99000.0,26.49551569]
[1763058491790,2.5787758,99001.0,99000.0,26.49551569]
[1763058492000,2.55762341,99001.0,99000.0,26.49551569]
[1763058492227,2.75964157,99001.0,99000.0,26.49551569]
[1763058492454,2.75664157,99001.0,99000.0,26.49551569]
[1763058492680,2.78078136,99001.0,99000.0,26.27291971]
[1763058492906,2.77778136,99001.0,99000.0,26.14966579]
[1763058493128,2.78178136,99001.0,99000.0,26.15066579]
[1763058493312,2.78578136,99001.0,99000.0,26.15066579]
[1763058493561,2.52911515,99001.0,99000.0,26.14966579]
[1763058493805,2.55025543,99001.0,99000.0,26.14966579]
[1763058494014,2.52911515,99001.0,99000.0,26.14966579]
[1763058494235,2.54626031,99001.0,99000.0,26.14966579]
[1763058494466,2.55026031,99001.0,99000.0,26.14966579]
[1763058494684,2.56611419,99001.0,99000.0,26.14966579]
[1763058494862,2.57011419,99001.0,99000.0,26.15066579]
[1763058495402,2.56611419,99001.0,99000.0,26.14966579]
[1763058495608,2.56511419,99001.0,99000.0,26.14966579]
[1763058495821,2.56811419,99001.0,99000.0,26.14966579]
[1763058496280,2.24511419,99001.0,99000.0,26.14966579]
[1763058496534,2.18055029,99001.0,99000.0,26.14966579]
[1763058496763,2.07306693,99001.0,99000.0,26.14966579]
[1763058497005,2.05721305,99001.0,99000.0,26.14966579]
[1763058497240,0.05721305,99001.0,99000.0,26.14966579]
[1763058497677,0.07306331,99001.0,99000.0,26.14966579]
[1763058497907,0.07006331,99001.0,99000.0,26.14966579]
[1763058498132,0.07906964,99001.0,99000.0,26.14966579]
[1763058498603,0.07406964,99001.0,99000.0,26.14966579]
[1763058498818,2.39806964,99001.0,99000.0,26.14966579]
[1763058499042,2.39706964,99001.0,99000.0,26.15066579]
[1763058499468,0.39006331,99001.0,99000.0,26.14966579]
[1763058499745,0.44933291,99001.0,99000.0,26.15066579]
[1763058499943,2.44933291,99001.0,99000.0,26.15066579]
[1763058500377,2.40591417,99001.0,99000.0,26.15066579]
[1763058500603,0.06020417,99001.0,99000.0,26.07666579]
[1763058500823,0.07327417,99001.0,99000.0,26.07666579]
[1763058501503,2.39627417,99001.0,99000.0,26.07666579]
[1763058501722,2.43969291,99001.0,99000.0,26.07666579]
[1763058502607,2.43969291,99001.0,99000.0,26.07566579]
[1763058502816,2.43975401,99001.0,99000.0,26.07566579]
[1763058503040,2.56046124,99001.0,99000.0,26.07616579]
[1763058503258,2.56146124,99001.0,99000.0,26.07616579]
[1763058503532,4.56146124,99001.0,99000.0,26.07616579]
[1763058503931,2.56146124,99001.0,99000.0,26.07616579]
[1763058504237,2.56046124,99001.0,99000.0,26.07616579]
[1763058504491,2.56246124,99001.0,99000.0,26.07616579]
[1763058504692,2.56146124,99001.0,99000.0,26.07616579]
[1763058504938,2.56146124,99001.0,99000.0,26.06401291]
[1763058505140,2.56246124,99001.0,99000.0,26.06401291]
[1763058505343,2.55946124,99001.0,99000.0,26.06401291]
[1763058505548,2.66796124,99001.0,99000.0,26.06401291]
[1763058505825,2.66996124,99001.0,99000.0,26.06401291]
[1763058506119,2.66596124,99001.0,99000.0,26.06401291]
[1763058506331,2.66996124,99001.0,99000.0,26.06401291]
[1763058506547,2.66596124,99001.0,99000.0,26.06401291]
[1763058507445,2.66896124,99001.0,99000.0,26.06401291]
[1763058507892,2.66896124,99001.0,99000.0,25.98901291]
[1763058508337,2.71266129,99001.0,99000.0,24.77318255]
[1763058508571,2.67724512,99001.0,99000.0,24.77318255]
[1763058509013,2.70763149,99001.0,99000.0,24.77318255]
[1763058509239,2.70463149,99001.0,99000.0,24.77318255]
[1763058509485,2.60614813,99001.0,99000.0,22.51264419]
[1763058509707,2.59786425,99001.0,99000.0,22.51264419]
[1763058509934,2.60314888,99001.0,99000.0,22.51264419]
[1763058510148,2.55973014,99001.0,99000.0,22.51264419]
[1763058510381,2.52405914,99001.0,99000.0,22.51264419]
[1763058510609,2.51905914,99001.0,99000.0,22.51272499]
[1763058511118,2.25897788,99001.0,99000.0,22.51272499]
[1763058511291,2.24712702,99001.0,99000.0,22.51272499]
[1763058511539,2.57012702,99001.0,99000.0,22.51272499]
[1763058511983,2.56112702,99001.0,99000.0,22.51272499]
[1763058512189,2.54790315,99001.0,99000.0,22.51272499]
[1763058512417,2.54829596,99001.0,99000.0,22.51272499]
[1763058512869,2.55229596,99001.0,99000.0,22.51272499]
[1763058513087,2.53908633,99001.0,99000.0,22.51272499]
[1763058513313,2.60522029,99001.0,99000.0,22.51272499]
[1763058513534,2.60434217,99001.0,99000.0,22.51272499]
[1763058514040,2.59905821,99001.0,99000.0,22.51272499]
[1763058514256,2.59555821,99001.0,99000.0,22.51272499]
[1763058514695,2.61141305,99001.0,99000.0,22.51272499]
[1763058514936,2.61141305,99001.0,99000.0,22.43772499]
[1763058515158,2.54452305,99001.0,99000.0,22.43772499]
[1763058515379,2.60537305,99001.0,99000.0,22.43772499]
[1763058515594,2.60937305,99001.0,99000.0,22.43772499]
[1763058515802,2.60537305,99001.0,99000.0,22.43772499]
[1763058516003,2.62522773,99001.0,99000.0,22.43772499]
[1763058516510,2.62222773,99001.0,99000.0,22.43772499]
[1763058516957,2.62622773,99001.0,99000.0,22.43772499]
[1763058517186,2.15330899,99001.0,99000.0,22.43772499]
[1763058517410,0.15330899,99001.0,99000.0,22.43772499]
[1763058517861,2.15330899,99001.0,99000.0,22.43772499]
[1763058518091,2.35132715,99001.0,99000.0,22.43722499]
[1763058518316,2.82752956,99001.0,99000.0,22.43722499]
[1763058518817,2.82752956,99001.0,99000.0,21.96595702]
[1763058518818,2.89010141,99001.0,99000.0,21.96595702]
[1763058519033,2.82752956,99001.0,99000.0,21.96595702]
[1763058519489,2.82952956,99001.0,99000.0,21.96595702]
[1763058519720,2.5210114,99001.0,99000.0,21.96595702]
[1763058519944,2.51572773,99001.0,99000.0,21.96595702]
[1763058520147,2.15330899,99001.0,99000.0,21.96595702]
[1763058520408,2.09245899,99001.0,99000.0,21.96595702]
[1763058520638,0.06321592,99001.0,99000.0,21.96595702]
[1763058520888,0.06621592,99001.0,99000.0,21.96595702]
[1763058521127,0.11559124,99001.0,99000.0,21.96595702]
[1763058521376,0.10759124,99001.0,99000.0,21.96595702]
[1763058521625,0.11059124,99001.0,99000.0,21.96595702]
[1763058522063,0.11059124,99001.0,99000.0,21.89795702]
[1763058522064,0.10759124,99001.0,99000.0,21.89795702]
[1763058522293,0.10959124,99001.0,99000.0,21.89795702]
[1763058522768,2.68102814,99001.0,99000.0,21.89795702]
[1763058523020,2.50028006,99001.0,99000.0,21.89795702]
[1763058523271,2.69929822,99001.0,99000.0,21.89795702]
[1763058523493,2.70029822,99001.0,99000.0,21.89359567]
[1763058523951,2.69829822,99001.0,99000.0,21.89359567]
[1763058524170,2.69729822,99001.0,99000.0,21.89359567]
[1763058524402,2.70758214,99001.0,99000.0,21.89359567]
[1763058524615,2.72043653,99001.0,99000.0,21.89359567]
[1763058524820,2.70958169,99001.0,99000.0,21.89359567]
[1763058525223,2.70458169,99001.0,99000.0,21.89359567]
[1763058525433,2.70858169,99001.0,99000.0,21.89359567]
[1763058525674,2.70658169,99001.0,99000.0,21.89359567]
[1763058525905,2.71058169,99001.0,99000.0,21.89359567]
[1763058526142,2.71058169,99001.0,99000.0,21.89232567]
[1763058526388,2.69457579,99001.0,99000.0,21.89232567]
[1763058526845,2.69857579,99001.0,99000.0,21.89232567]
[1763058527069,2.63632559,99001.0,99000.0,21.89232567]
[1763058527289,2.7156403,99001.0,99000.0,21.89232567]
[1763058527923,2.73149521,99001.0,99000.0,21.89232567]
[1763058529004,2.52947705,99001.0,99000.0,21.89232567]
[1763058529210,2.15777439,99001.0,99000.0,21.89232567]
[1763058529421,2.15777439,99001.0,99000.0,21.81732567]
[1763058529627,2.46491948,99001.0,99000.0,21.81732567]
[1763058530042,2.50833822,99001.0,99000.0,21.81732567]
[1763058530269,2.18533822,99001.0,99000.0,21.81732567]
[1763058530676,2.50833822,99001.0,99000.0,21.81732567]
[1763058531722,2.49085842,99001.0,99000.0,21.81732567]
[1763058532130,2.51364214,99001.0,99000.0,21.81732567]
[1763058532949,2.52949678,99001.0,99000.0,21.81732567]
[1763058533153,2.51364214,99001.0,99000.0,21.81732567]
[1763058534402,2.7156603,99001.0,99000.0,21.81732567]
[1763058535401,2.4702234,99001.0,99000.0,21.81732567]
[1763058535617,2.7156603,99001.0,99000.0,21.81732567]
[1763058536053,2.71568561,99001.0,99000.0,21.81732567]
[1763058536284,2.71168561,99001.0,99000.0,21.81732567]
[1763058536496,2.52852237,99001.0,99000.0,21.74232567]
[1763058536698,2.51923865,99001.0,99000.0,21.74232567]
[1763058537158,2.52323865,99001.0,99000.0,21.74232567]
[1763058537595,2.52823865,99001.0,99000.0,21.74232567]
[1763058537815,2.73025681,99001.0,99000.0,21.74232567]
[1763058539166,2.48481991,99001.0,99000.0,21.74232567]
[1763058539576,2.51238373,99001.0,99000.0,21.74232567]
[1763058539797,2.6985475,99001.0,99000.0,21.74232567]
[1763058540238,2.6945475,99001.0,99000.0,21.74232567]
[1763058540681,2.6955475,99001.0,99000.0,21.74232567]
[1763058540900,2.6915475,99001.0,99000.0,21.74232567]
[1763058541120,2.69983155,99001.0,99000.0,21.74232567]
[1763058541331,2.70383155,99001.0,99000.0,21.74232567]
[1763058541558,2.69683155,99001.0,99000.0,21.18283542]
[1763058541803,2.88174921,99001.0,99000.0,20.57533235]
[1763058542036,2.88574921,99001.0,99000.0,20.57533235]
[1763058542243,2.80010558,99001.0,99000.0,20.57533235]
[1763058542450,2.77360558,99001.0,99000.0,20.57533235]
[1763058542659,2.52458681,99001.0,99000.0,20.57533235]
[1763058542871,2.56002359,99001.0,99000.0,20.57533235]
[1763058543118,2.66252359,99001.0,99000.0,20.57533235]
[1763058543331,2.66252359,99001.0,99000.0,19.71246359]
[1763058543539,2.66252359,99001.0,99000.0,19.63746359]
[1763058543747,3.16252359,99001.0,99000.0,19.63746359]
[1763058544016,3.16752359,99001.0,99000.0,19.63746359]
[1763058544442,2.98660593,99001.0,99000.0,19.63746359]
[1763058544620,2.48160593,99001.0,99000.0,19.63746359]
[1763058545079,2.55786415,99001.0,99000.0,18.80200298]
[1763058545295,2.66436415,99001.0,99000.0,18.80200298]
[1763058546162,2.66436415,99001.0,99000.0,18.40922955]
[1763058546387,2.66436415,99001.0,99000.0,17.84036877]
[1763058546598,1.49436492,99001.0,99000.0,11.96663747]
[1763058546813,1.49436492,99001.0,99000.0,10.68127312]
[1763058547033,1.37903292,99001.0,99000.0,8.64975974]
[1763058547293,3.38003292,99001.0,99000.0,8.61937437]
[1763058547510,3.38003292,99001.0,99000.0,8.55860363]
[1763058547729,3.38103292,99001.0,99000.0,8.52821826]
[1763058547955,3.40944447,99001.0,99000.0,8.49783289]
[1763058548206,3.38203292,99001.0,99000.0,7.04657409]
[1763058548463,3.39003292,99001.0,99000.0,6.44519886]
[1763058548681,3.38203292,99001.0,99000.0,5.55755279]
[1763058548901,3.38203292,99001.0,99000.0,5.42189942]
[1763058549127,3.38203292,99001.0,99000.0,4.89524062]
[1763058549353,3.38203292,99001.0,99000.0,4.86485525]
[1763058549580,3.37403292,99001.0,99000.0,4.67555525]
[1763058549811,3.23111418,99001.0,99000.0,4.67555525]
[1763058550039,2.6368378,99001.0,99000.0,4.67555525]
[1763058550258,2.9598378,99001.0,99000.0,4.67555525]
[1763058550476,2.9528378,99001.0,99000.0,4.67555525]
[1763058550747,2.9458378,99001.0,99000.0,4.60055525]
[1763058550961,2.4598378,99001.0,99000.0,4.60055525]
[1763058551182,2.49625654,99001.0,99000.0,4.60055525]
[1763058551634,2.48925654,99001.0,99000.0,4.60055525]
[1763058551855,2.49325654,99001.0,99000.0,4.60055525]
[1763058552395,2.49825654,99001.0,99000.0,4.60055525]
[1763058552599,2.57073422,99001.0,99000.0,4.60055525]
[1763058552801,2.55487785,99001.0,99000.0,4.1238008]
[1763058553010,2.55987785,99001.0,99000.0,3.88225707]
[1763058553216,2.51272107,99001.0,99000.0,0.12683522]
[1763058553418,2.61656139,98989.0,98988.0,1.5981206]
[1763058553592,2.61656139,98989.0,98988.0,0.38272983]
[1763058553593,2.65632199,98989.0,98988.0,0.38272983]
[1763058553793,2.69169805,98989.0,98988.0,6e-08]
[1763058553999,2.6867136,98989.0,98988.0,6e-08]
[1763058554656,2.6927136,98989.0,98988.0,6e-08]
[1763058555047,2.72208966,98989.0,98988.0,6e-08]
[1763058555257,2.6867136,98989.0,98988.0,6e-08]
[1763058555491,2.6927136,98989.0,98988.0,6e-08]
[1763058555827,3.1927136,98989.0,98988.0,6e-08]
[1763058556243,3.21457393,98989.0,98988.0,6e-08]
[1763058557037,3.20257393,98989.0,98988.0,6e-08]
[1763058557239,3.25092983,98989.0,98988.0,6e-08]
[1763058557415,0.26240976,98980.0,98979.0,0.47450787]
[1763058557626,2.52507327,98974.0,98917.0,0.04162879]
[1763058557822,2.0,98952.0,98949.0,0.30964644]
[1763058557985,2.48581874,98950.0,98949.0,0.30964644]
[1763058558179,2.50430876,98950.0,98949.0,0.30964644]
[1763058558387,2.46089002,98950.0,98949.0,0.30964644]
[1763058559010,2.47384715,98950.0,98949.0,0.30964644]
[1763058559431,2.49504873,98950.0,98949.0,0.30964644]
[1763058559639,2.51726589,98950.0,98949.0,0.30964644]
[1763058559844,2.62376589,98950.0,98949.0,0.30964644]
[1763058560055,2.52326589,98950.0,98949.0,0.30964644]
[1763058560454,2.45526589,98950.0,98949.0,0.30964644]
[1763058560659,0.02433746,98950.0,98949.0,0.30964644]
[1763058560886,0.02654649,98950.0,98949.0,0.30964644]
[1763058561095,0.02254649,98950.0,98949.0,0.30964644]
[1763058561306,0.01854649,98950.0,98949.0,0.30964644]
[1763058561714,0.00405647,98950.0,98949.0,0.30964644]
[1763058562339,0.0423709,98950.0,98949.0,0.30964644]
[1763058562548,0.0224709,98950.0,98949.0,0.30964644]
[1763058562767,0.0184709,98950.0,98949.0,0.30964644]
[1763058563198,0.0284709,98950.0,98949.0,0.30964644]
[1763058563642,0.0204709,98950.0,98949.0,0.30964644]
[1763058563855,0.01105647,98950.0,98949.0,0.30964644]
[1763058564110,0.00105647,98950.0,98949.0,0.30964644]
[1763058564329,0.02205647,98950.0,98949.0,0.30964644]
[1763058564536,0.00105647,98950.0,98949.0,0.31097006]
[1763058564755,0.02105647,98950.0,98949.0,0.31097006]
[1763058564924,0.00105647,98950.0,98949.0,0.23797006]
[1763058565322,5.647e-05,98950.0,98949.0,0.23797006]
[1763058566348,5.647e-05,98950.0,98949.0,0.33413006]
[1763058566733,0.52,98960.0,98949.0,0.33169307]
[1763058566962,0.176482,98960.0,98959.0,0.09574]
[1763058567384,0.183496,98960.0,98959.0,0.0355]
[1763058567560,0.203496,98960.0,98959.0,0.0355]
[1763058568009,0.183496,98960.0,98959.0,0.0355]
[1763058568812,0.183496,98960.0,98959.0,0.28102264]
[1763058569032,0.5,98960.0,98959.0,0.107021]
[1763058569263,0.5,98960.0,98959.0,0.0355]
[1763058569787,0.5,98960.0,98959.0,0.07891874]
[1763058569992,0.01585364,98983.0,98960.0,0.04341874]
[1763058570198,0.01585364,98983.0,98959.0,0.1013]
[1763058570199,0.01585364,98983.0,98973.0,0.6164848]
[1763058570412,0.01585364,98983.0,98982.0,0.0658]
[1763058570834,0.01585364,98983.0,98973.0,0.6164848]
[1763058570835,0.01585364,98983.0,98973.0,0.81855916]
[1763058571044,0.01585364,98983.0,98980.0,0.20206094]
[1763058571268,3.64e-06,98983.0,98982.0,0.0658]
[1763058571465,0.00035081,99000.0,98989.0,0.0307]
[1763058571674,0.00035081,99000.0,98999.0,0.09875]
[1763058571675,0.02021881,99000.0,98999.0,0.09875]
[1763058571896,0.00021881,99000.0,98999.0,0.03833]
[1763058572118,0.00021881,99000.0,98983.0,0.03833]
[1763058572336,0.02,98990.0,98983.0,0.03833]
[1763058572517,0.4153,98999.0,98983.0,0.03833]
[1763058572719,0.2,98990.0,98983.0,0.03833]
[1763058572919,0.02,98990.0,98983.0,0.03833]
[1763058573131,0.04515,98992.0,98983.0,0.03833]
[1763058573327,0.04515,98992.0,98982.0,0.00046437]
[1763058573328,0.02,98990.0,98982.0,0.00046437]
[1763058573745,0.02,98990.0,98983.0,0.001]
[1763058574319,0.40021881,99000.0,98983.0,0.001]
[1763058574320,0.00021881,99000.0,98983.0,0.001]
[1763058574534,0.00021881,99000.0,98990.0,1.64416496]
[1763058574756,0.01,99030.0,99008.0,0.20200227]
[1763058574974,0.01,99040.0,99020.0,0.6164848]
[1763058575364,0.01,99050.0,99030.0,0.6164848]
[1763058575562,0.02,99050.0,99040.0,0.6164848]
[1763058576002,0.02,99050.0,99040.0,0.06164848]
[1763058576225,0.02014009,99050.0,99040.0,0.81842186]
[1763058576462,0.00014009,99050.0,99048.0,0.2019206]
[1763058576664,0.00014009,99050.0,99043.0,0.20193104]
[1763058576869,0.01,99080.0,99060.0,0.6164848]
[1763058577080,0.01013991,99080.0,99061.0,0.06164848]
[1763058577293,2.11060057,99079.0,99050.0,0.6164848]
[1763058577501,2.11060057,99079.0,99020.0,0.01009896]
[1763058577502,0.01829936,99078.0,99060.0,0.6164848]
[1763058577708,0.02,99070.0,99060.0,0.6114848]
[1763058577917,0.01584087,99076.0,99060.0,0.6164848]
[1763058578124,0.01,99070.0,99066.0,0.6164848]
[1763058578328,0.01584087,99076.0,99050.0,0.6164848]
[1763058578544,0.02,99060.0,99050.0,1.02768016]
[1763058578748,0.02013991,99080.0,99051.0,0.323]
[1763058578956,0.00013991,99080.0,99070.0,0.6154848]
[1763058579157,0.00113991,99080.0,99071.0,0.06154848]
[1763058579367,0.00113991,99080.0,99070.0,0.6164848]
[1763058579574,0.01,99100.0,99070.0,0.62657867]
[1763058579780,0.02,99100.0,99090.0,0.6154848]
[1763058581023,0.52,99100.0,99090.0,0.6154848]
[1763058581230,0.5,99100.0,99090.0,0.6154848]
[1763058581450,0.5,99100.0,99091.0,0.06154848]
[1763058582331,0.5,99100.0,99090.0,0.6184848]
[1763058582548,0.0202,99110.0,99090.0,1.64516496]
[1763058582549,0.0002,99110.0,99090.0,1.64516496]
[1763058582757,0.0002,99110.0,99100.0,1.64416496]
[1763058583184,0.0002,99110.0,99102.0,0.20181053]
[1763058583396,0.0002,99110.0,99100.0,1.64416496]
[1763058583603,2e-05,99110.0,99109.0,0.323]
[1763058583821,2e-05,99110.0,99109.0,0.36641874]
[1763058584034,0.00015988,99110.0,99109.0,0.36641874]
[1763058584241,0.0002,99150.0,99130.0,0.00999999]
[1763058584447,0.00066646,99150.0,99140.0,0.3027448]
[1763058584663,0.00066646,99150.0,99141.0,0.03027448]
[1763058584871,0.00066646,99150.0,99140.0,0.6164848]
[1763058585078,0.00066646,99150.0,99140.0,1.64416496]
[1763058585284,0.00066646,99150.0,99141.0,0.29990203]
[1763058585486,0.00066646,99150.0,99141.0,0.09816915]
[1763058585693,0.00066646,99150.0,99143.0,0.20172805]
[1763058585899,0.00066646,99150.0,99146.0,0.20172227]
[1763058586142,0.00066646,99150.0,99144.0,0.09848336]
[1763058586352,0.00066646,99150.0,99146.0,0.20171999]
[1763058586567,0.00066646,99150.0,99148.0,0.14771826]
[1763058586786,0.00066646,99150.0,99143.0,0.20172822]
[1763058586787,0.00066646,99150.0,99140.0,0.6184848]
[1763058587013,0.00066646,99150.0,99145.0,0.20172474]
[1763058587242,0.00066646,99150.0,99149.0,0.323]
[1763058587470,0.00779481,99168.0,99143.0,0.003]
[1763058587471,0.00779481,99168.0,99160.0,0.56811297]
[1763058587686,0.4002,99240.0,99162.0,0.5681089]
[1763058587889,0.0923,99239.0,99210.0,0.6164848]
[1763058588096,0.02,99210.0,99200.0,0.6164848]
[1763058588319,0.02,99230.0,99200.0,0.6164848]
[1763058588563,0.02,99230.0,99220.0,0.6164848]
[1763058589216,0.003,99240.0,99220.0,0.6164848]
[1763058589427,0.01913982,99240.0,99230.0,0.6164848]
[1763058589641,0.01913982,99240.0,99231.0,0.06164848]
[1763058589846,0.01913982,99230.0,99220.0,0.00013982]
[1763058590073,0.01913982,99230.0,99220.0,0.61662462]
[1763058590292,0.02013982,99230.0,99220.0,0.61662462]
[1763058590696,0.02113982,99230.0,99220.0,0.61662462]
[1763058590914,0.02113982,99230.0,99220.0,0.00013982]
[1763058591147,0.02013982,99230.0,99220.0,0.00013982]
[1763058591370,0.01913982,99230.0,99220.0,0.61662462]
[1763058591582,0.02013982,99230.0,99220.0,0.61662462]
[1763058591784,0.02013982,99230.0,99220.0,0.6356177]
[1763058592092,0.323,99249.0,99220.0,0.6356177]
[1763058592298,0.001,99230.0,99220.0,0.0191329]
[1763058592530,0.001,99230.0,99220.0,0.00013982]
[1763058592753,0.002,99230.0,99220.0,0.00013982]
[1763058593210,0.001,99230.0,99220.0,0.00013982]
[1763058593439,0.02,99250.0,99221.0,0.323]
[1763058593654,0.0923,99280.0,99240.0,0.5834848]
[1763058593906,0.002,99249.0,99241.0,0.05834848]
[1763058594109,0.002,99249.0,99230.0,0.52454991]
[1763058594329,0.52,99260.0,99221.0,0.323]
[1763058594552,0.002,99249.0,99223.0,0.323]
[1763058594779,0.02,99240.0,99223.0,0.323]
[1763058595010,0.02,99240.0,99221.0,0.001]
[1763058595011,0.02,99240.0,99230.0,0.6164848]
[1763058595262,0.04,99240.0,99230.0,0.6164848]
[1763058595452,0.02,99260.0,99230.0,0.6164848]
[1763058595657,0.02,99260.0,99248.0,0.6164848]
[1763058595863,0.02,99260.0,99249.0,0.06164848]
[1763058596076,0.02,99260.0,99248.0,0.6164848]
[1763058596251,9e-05,99266.0,99248.0,0.6164848]
[1763058596516,9e-05,99266.0,99256.0,0.6164848]
[1763058596936,0.02,99260.0,99256.0,0.6164848]
[1763058597137,0.02,99260.0,99250.0,1.64416496]
[1763058597343,9e-05,99266.0,99250.0,1.74264832]
[1763058597545,0.02,99260.0,99256.0,0.6164848]
[1763058597745,0.00055571,99266.0,99250.0,1.74264832]
[1763058597959,0.00055571,99266.0,99256.0,0.6164848]
[1763058598624,0.02,99260.0,99256.0,0.6164848]
[1763058598837,0.00055571,99266.0,99250.0,0.001]
[1763058598838,0.00055571,99266.0,99250.0,0.6174848]
[1763058599061,0.00055571,99266.0,99250.0,0.001]
[1763058599262,0.00055571,99266.0,99256.0,0.6164848]
[1763058599461,0.02,99260.0,99256.0,0.6164848]
[1763058599666,0.00055571,99266.0,99250.0,0.001]
[1763058599667,0.00055571,99266.0,99250.0,0.6174848]
[1763058599877,0.00055571,99266.0,99256.0,0.6164848]
[1763058600288,0.02,99260.0,99256.0,0.6174848]
[1763058600491,0.00055571,99266.0,99256.0,0.001]
[1763058600666,0.00055571,99266.0,99256.0,0.6164848]
[1763058600902,0.00055571,99266.0,99226.0,0.323]
[1763058601133,0.00155571,99266.0,99256.0,0.6164848]
[1763058601322,0.00106571,99266.0,99256.0,0.6164848]
[1763058601527,0.00106571,99266.0,99255.0,0.323]
[1763058601737,0.00106571,99266.0,99256.0,0.6164848]
[1763058601953,0.00106571,99266.0,99230.0,0.10816914]
[1763058601954,0.00106571,99266.0,99210.0,0.02793887]
[1763058602157,0.323,99259.0,99240.0,0.6164848]
[1763058602362,0.323,99259.0,99249.0,0.6164848]
[1763058602565,0.323,99259.0,99200.0,1.02768016]
[1763058602773,0.04341874,99249.0,99230.0,0.6164848]
[1763058602976,0.04,99240.0,99230.0,0.6164848]
[1763058603184,0.06664,99231.0,99171.0,0.20167172]
[1763058603390,0.04341874,99219.0,99200.0,0.6164848]
[1763058603681,0.04341874,99209.0,99190.0,0.6164848]
[1763058603862,0.01,99190.0,99172.0,0.04415107]
[1763058604082,0.01,99190.0,99180.0,0.09816915]
[1763058604288,0.04341874,99212.0,99164.0,0.323]
[1763058604500,0.02,99190.0,99180.0,0.00039999]
[1763058604964,0.09117874,99189.0,99180.0,0.00039999]
[1763058605394,0.11005874,99181.0,99180.0,0.00039999]
[1763058605611,0.44130787,99188.0,99180.0,0.00039999]
[1763058605612,0.008,99188.0,99180.0,0.00039999]
[1763058606473,0.331,99188.0,99180.0,0.00039999]
[1763058606693,0.331,99188.0,99180.0,0.00339999]
[1763058607110,0.04341874,99187.0,99180.0,0.00039999]
[1763058607289,0.42749874,99181.0,99180.0,0.00239999]
[1763058607751,0.42749874,99181.0,99180.0,0.00039999]
[1763058607981,0.42749874,99181.0,99150.0,0.82952921]
[1763058608206,0.04341874,99159.0,99150.0,0.00013982]
[1763058608418,0.09306874,99151.0,99150.0,0.00013982]
[1763058608630,0.15414874,99151.0,99150.0,0.00013982]
[1763058608830,0.47714874,99151.0,99150.0,0.00013982]
[1763058609043,0.36641874,99151.0,99150.0,0.00013982]
[1763058609916,0.42749874,99151.0,99150.0,0.00013982]
[1763058610132,0.4672998,99151.0,99150.0,0.00013982]
[1763058610340,0.04341874,99129.0,99110.0,0.89912923]
[1763058610568,0.04341874,99129.0,99120.0,0.89912923]
[1763058610789,0.02,99130.0,99120.0,0.89912923]
[1763058611011,0.02,99130.0,99129.0,0.00017]
[1763058611234,0.01,99150.0,99130.0,0.01008776]
[1763058611563,0.01,99160.0,99140.0,0.89912923]
[1763058611649,0.09048,99182.0,99140.0,0.89912923]
[1763058611650,0.02,99150.0,99149.0,0.00017]
[1763058611878,0.2,99210.0,99140.0,0.89912923]
[1763058611879,0.02,99190.0,99160.0,0.01008471]
[1763058612088,0.02,99180.0,99160.0,0.89912923]
[1763058612302,0.01,99170.0,99154.0,0.00017]
[1763058612508,0.01,99170.0,99155.0,0.09848336]
[1763058612720,0.04965,99197.0,99142.0,0.00017]
[1763058612926,0.02,99160.0,99142.0,0.00013982]
[1763058613153,0.04965,99143.0,99142.0,0.00013982]
[1763058613366,0.09306874,99143.0,99142.0,0.00013982]
[1763058613583,0.46283464,99143.0,99142.0,0.00013982]
[1763058613820,0.02,99120.0,99112.0,0.00174465]
[1763058614079,0.09306874,99113.0,99112.0,0.00221111]
[1763058614286,0.05280998,99113.0,99112.0,0.00221111]
[1763058614519,0.04965,99125.0,99112.0,0.00221111]
[1763058614734,0.01,99120.0,99115.0,0.89912923]
[1763058614939,0.5,99120.0,99116.0,0.00031]
[1763058615152,0.52,99120.0,99100.0,0.00031]
[1763058615375,0.52,99120.0,99110.0,0.89994549]
[1763058616018,0.52,99120.0,99100.0,0.00044988]
[1763058616019,0.52,99120.0,99100.0,0.00013988]
[1763058616252,0.51,99120.0,99112.0,0.002]
[1763058616487,0.5,99120.0,99110.0,0.001]
[1763058616705,0.323,99119.0,99110.0,0.001]
[1763058616904,0.323,99119.0,99110.0,0.002]
[1763058617138,0.323,99119.0,99100.0,0.00013988]
[1763058617344,0.5,99120.0,99100.0,0.00013988]
[1763058617345,0.02,99110.0,99100.0,0.00013988]
[1763058617557,0.02,99110.0,99101.0,0.02019601]
[1763058617766,0.52,99120.0,99101.0,0.02019601]
[1763058618007,0.52,99120.0,99103.0,0.00023309]
[1763058618250,0.02,99110.0,99103.0,0.00023309]
[1763058618464,0.5,99120.0,99104.0,0.00031]
[1763058618688,0.5,99120.0,99119.0,0.20177766]
[1763058618689,0.49969,99120.0,99119.0,0.20177766]
[1763058618901,0.49969,99120.0,99119.0,0.52477766]
[1763058619105,0.5,99120.0,99119.0,0.0928341]
[1763058619335,0.5,99120.0,99118.0,0.20177851]
[1763058619749,0.5,99120.0,99111.0,0.323]
[1763058620168,0.5,99120.0,99100.0,0.00013988]
[1763058620377,0.501,99120.0,99119.0,0.001]
[1763058620589,0.501,99120.0,99119.0,0.004]
[1763058621030,0.522,99120.0,99119.0,0.004]
[1763058621239,0.502,99120.0,99119.0,0.004]
[1763058621452,0.522,99120.0,99119.0,0.004]